Workbook

Sheet 附件总表
A1: 四川太极大药房连锁有限公司2014年办公物资定额汇总表
A2: 序号 | B2: 部门/门店类型 | C2: 部门/门店数量 | D2: 单店每月定额 | E2: 单店全年定额 | F2: 后勤/分类门店全年定额 | G2: 总额
A3: 1 | B3: 后勤部门 | C3: 10 | F3: 11079 | G3: 225991
A4: 2 | B4: 旗舰店（含中药饮片、代煎药、中医坐诊） | C4: 1 | D4: 4120 | E4: 49442 | F4: 49442
A5: 3 | B5: 一类店（不含中药饮片、代煎药、中医坐诊） | C5: 15 | D5: 274 | E5: 3288 | F5: 49320
A6: 4 | B6: 二类店（不含中药饮片、代煎药、中医坐诊） | C6: 24 | D6: 159 | E6: 1912 | F6: 45890
A7: 5 | B7: 三类店（不含中药饮片、代煎药、中医坐诊） | C7: 60 | D7: 98 | E7: 1171 | F7: 70260
B8: 一类店（含中药饮片） | C8: 11 | D8: 根据中药销售额梯度定相应办公物资定额（详见附表三），全年单店定额1680元-12300元，最高不超过12300元（中药销售增长明显可作相应办公物资定额调整）。 | G8: 中药配套物资全年不超过7万
B9: 二类店（含中药饮片） | C9: 15
B10: 三类店（含中药饮片） | C10: 14
A11: 6 | B11: 一类店（含中药饮片、代煎药、中医坐诊） | C11: 9
A12: 7 | B12: 二类店（含中药饮片、代煎药、中医坐诊） | C12: 5
A13: 8 | B13: 三类店（含中药饮片、代煎药、中医坐诊） | C13: 3

Sheet 附表一
A1: 低值易耗品、清洁用品定额表（附表一）
A2: 使用规定 | B2: 序号 | C2: 品名 | D2: 规格 | E2: 单位 | F2: 参考价格（元） | G2: 定额
G3: 旗舰店 | I3: 一类店 | K3: 二类店 | M3: 三类店
G4: 数量 | H4: 金额 | I4: 数量 | J4: 金额 | K4: 数量 | L4: 金额 | M4: 数量 | N4: 金额
A5: 低值易耗品（每月使用额度） | B5: 1 | C5: 打码机价签 | E5: 卷 | F5: 9.5 | G5: 1 | H5: =G5*F5 -> 9.5 | I5: 0.5 | J5: =I5*F5 -> 4.75 | K5: 0.25 | L5: =K5*F5 -> 2.375 | M5: 0.125 | N5: =M5*F5 -> 1.1875
B6: 2 | C6: A4复印纸 | D6: 普白（500张/包） | E6: 包 | F6: 16.25 | G6: 1 | H6: =G6*F6 -> 16.25 | I6: 0.5 | J6: =I6*F6 -> 8.125 | K6: 0.25 | L6: 4.0625 | M6: 0.125 | N6: =M6*F6 -> 2.03125
B7: 3 | C7: 签字笔 | E7: 支 | F7: 0.65 | G7: 5 | H7: =G7*F7 -> 3.25 | I7: 2 | J7: =I7*F7 -> 1.3 | K7: 1 | L7: 0.65 | M7: 1 | N7: =M7*F7 -> 0.65
B8: 4 | C8: 签字笔芯 | E8: 支 | F8: 0.4 | G8: 30 | H8: =G8*F8 -> 12 | I8: 15 | J8: =I8*F8 -> 6 | K8: 5 | L8: 2 | M8: 3 | N8: =M8*F8 -> 1.2
B9: 5 | C9: 封口胶 | D9: 鸿盛 | E9: 卷 | F9: 10.5 | G9: 1 | H9: =G9*F9 -> 10.5 | I9: 0.5 | J9: 5.25 | K9: 0.25 | L9: 2.625 | M9: 0.125 | N9: =M9*F9 -> 1.3125
B10: 6 | C10: 透明胶 | E10: 卷 | F10: 0.5 | G10: 2 | H10: 1 | I10: 1 | J10: 0.5 | K10: 0.25 | L10: 0.125 | M10: 0.125 | N10: 0.0625
B11: 7 | C11: 双面胶 | E11: 卷 | F11: 0.8 | G11: 3 | H11: 2.4 | I11: 2 | J11: 1.6 | K11: 0.5 | L11: 0.4 | M11: 0.25 | N11: 0.2
B12: 8 | C12: 修正液 | D12: 白雪 | E12: 瓶 | F12: 2.7 | G12: 1 | H12: 2.7 | I12: 0.5 | J12: 1.35 | K12: 0.5 | L12: 1.35 | M12: 0.5 | N12: 1.35
B13: 9 | C13: 胶水 | E13: 瓶 | F13: 1 | G13: 1 | H13: 1 | I13: 0.5 | J13: 0.5 | K13: 0.5 | L13: 0.5 | M13: 0.5 | N13: 0.5
B14: 10 | C14: 订书针 | E14: 盒 | F14: 1 | G14: 1 | H14: 1 | I14: 0.5 | J14: 0.5 | K14: 0.25 | L14: 0.25 | M14: 0.125 | N14: 0.125
B15: 11 | C15: 回形针 | E15: 盒 | F15: 1.2 | G15: 1 | H15: 1.2 | I15: 0.5 | J15: 0.6 | K15: 0.25 | L15: 0.3 | M15: 0.125 | N15: 0.15
B16: 12 | C16: 大头针 | E16: 盒 | F16: 1.3 | G16: 0.5 | H16: 0.65 | I16: 0.5 | J16: 0.65 | K16: 0.5 | L16: 0.65 | M16: 0.25 | N16: 0.325
B17: 13 | C17: 橡皮筋 | E17: 袋 | F17: 4.5 | G17: 1 | H17: 4.5 | I17: 0.5 | J17: 2.25 | K17: 0.25 | L17: 1.125 | M17: 0.125 | N17: 0.5625
B18: 14 | C18: 纸杯 | D18: 50个/打 | E18: 打 | F18: 5 | G18: 4 | H18: 20 | I18: 1 | J18: 5 | K18: 0.5 | L18: 2.5 | M18: 0.25 | N18: 1.25
B19: 15 | C19: 复写纸 | D19: 48开（收据用） | E19: 本 | F19: 3.2 | G19: 1 | H19: 3.2 | I19: 0.5 | J19: 1.6 | K19: 0.25 | L19: 0.8 | M19: 0.125 | N19: =M19*F19 -> 0.4
B20: 16 | C20: 复写纸 | D20: 16开（医生用） | E20: 本 | F20: 7 | G20: 2 | H20: 14 | I20: 1 | J20: 7 | K20: 0.5 | L20: 3.5 | M20: 0 | N20: 0
B21: 17 | C21: 凭证粘贴单 | E21: 本 | F21: 1 | G21: 1 | H21: 1 | I21: 0.5 | J21: 0.5 | K21: 0.5 | L21: 0.5 | M21: 0.5 | N21: 0.5
B22: 18 | C22: 费用报销单 | E22: 本 | F22: 1 | G22: 1 | H22: 1 | I22: 0.5 | J22: 0.5 | K22: 0.5 | L22: 0.5 | M22: 0.5 | N22: 0.5
B23: 19 | C23: 专业POP笔 | D23: 红、黑、蓝色 | E23: 支 | F23: 6.2 | G23: 6 | H23: 37.2 | I23: 3 | J23: 18.6 | K23: 2 | L23: 12.4 | M23: 1 | N23: 6.2
B24: 20 | C24: POP笔补充液 | E24: 瓶 | F24: 6.2 | G24: 3 | H24: 18.6 | I24: 1 | J24: 6.2 | K24: 1 | L24: 6.2 | M24: 0.5 | N24: 3.1
A25: 合计 | C25: 每月定额 | H25: =SUM(H5:H24) -> 160.95 | J25: =SUM(J5:J24) -> 72.775 | L25: =SUM(L5:L24) -> 42.8125 | N25: =SUM(N5:N24) -> 21.60625
A26: 耐用消耗品（年度使用额度） | B26: 1 | C26: 电池 | D26: 5# | E26: 对 | F26: 1.9 | G26: 2 | H26: =G26*F26 -> 3.8 | I26: 1 | J26: =I26*F26 -> 1.9 | K26: 1 | L26: =K26*F26 -> 1.9 | M26: 1 | N26: =M26*F26 -> 1.9
B27: 2 | C27: 电池 | D27: 7# | E27: 对 | F27: 1.9 | G27: 2 | H27: =G27*F27 -> 3.8 | I27: 1 | J27: =I27*F27 -> 1.9 | K27: 1 | L27: =K27*F27 -> 1.9 | M27: 1 | N27: =M27*F27 -> 1.9
B28: 3 | C28: 原子印油 | D28: 红色 | E28: 瓶 | F28: 2 | G28: 6 | H28: =F28*G28 -> 12 | I28: 3 | J28: =I28*F28 -> 6 | K28: 1 | L28: =K28*F28 -> 2 | M28: 1 | N28: =M28*F28 -> 2
B29: 4 | C29: 快干印台 | D29: 红色 | E29: 个 | F29: 7.2 | G29: 1 | H29: 7.2 | I29: 1 | J29: 7.2 | K29: 0.5 | L29: 3.6 | M29: 0.5 | N29: 3.6
B30: 5 | C30: 粘钩 | D30: 3个/板 | E30: 板 | F30: 0.9 | G30: 2 | H30: 1.8 | I30: 1 | J30: 0.9 | K30: 1 | L30: 0.9 | M30: 1 | N30: 0.9
B31: 6 | C31: 计算器 | D31: Cayina | E31: 个 | F31: 18 | G31: 2 | H31: 36 | I31: 1 | J31: 18 | K31: 0.5 | L31: 9 | M31: 0.5 | N31: 9
B32: 7 | C32: 拉杆夹 | E32: 个 | F32: 0.8 | G32: 2 | H32: 1.6 | I32: 1 | J32: 0.8 | K32: 1 | L32: 0.8 | M32: 1 | N32: 0.8
B33: 8 | C33: 文件册 | D33: 60页 | E33: 本 | F33: 6.8 | G33: 1 | H33: 6.8 | I33: 1 | J33: 6.8 | K33: 1 | L33: 6.8 | M33: 1 | N33: 6.8
B34: 9 | C34: 剪刀 | D34: 得力 | E34: 把 | F34: 3.5 | G34: 2 | H34: 7 | I34: 1 | J34: 3.5 | K34: 1 | L34: 3.5 | M34: 1 | N34: 3.5
B35: 10 | C35: 美工刀 | D35: 得力 | E35: 把 | F35: 4 | G35: 2 | H35: 8 | I35: 1 | J35: 4 | K35: 1 | L35: 4 | M35: 1 | N35: 4
B36: 11 | C36: 长尾票夹 | D36: 中号（24个/盒） | E36: 盒 | F36: 8.5 | G36: 1 | H36: 8.5 | I36: 0.5 | J36: 4.25 | K36: 0.25 | L36: 2.125 | M36: 0.125 | N36: 1.0625
B37: 12 | C37: 插线板 | D37: 公牛3米6孔 | E37: 个 | F37: 34 | G37: 2 | H37: 68 | I37: 1 | J37: 34 | K37: 1 | L37: 34 | M37: 1 | N37: 34
B38: 13 | C38: 插线板 | D38: 公牛5米6孔 | E38: 个 | F38: 48 | G38: 1 | H38: 48 | I38: 0 | J38: 0 | K38: 0 | L38: 0 | M38: 0 | N38: 0
B39: 14 | C39: 起钉器 | E39: 个 | F39: 2.5 | G39: 1 | H39: 2.5 | I39: 1 | J39: 2.5 | K39: 1 | L39: 2.5 | M39: 1 | N39: 2.5
B40: 15 | C40: 订书机 | D40: 普通 | E40: 个 | F40: 8 | G40: 1 | H40: 8 | I40: 0.5 | J40: 4 | K40: 0.5 | L40: 4 | M40: 0.5 | N40: =M40*F40 -> 4
B41: 16 | C41: 打码机 | E41: 个 | F41: 26 | G41: 0.5 | H41: 13 | I41: 0.5 | J41: 13 | K41: 0.25 | L41: 6.5 | M41: 0.125 | N41: 3.25
B42: 17 | C42: 证照框 | E42: 个 | F42: 5 | G42: 10 | H42: 50 | I42: 5 | J42: 25 | K42: 5 | L42: 25 | M42: 5 | N42: 25
A43: 清洁用品（年度使用额度） | B43: 18 | C43: 大垃圾袋 | D43: 熬药室垃圾桶用 | E43: 把 | F43: 13 | G43: 18 | H43: 234 | I43: 8 | J43: 104 | K43: 0 | L43: 0 | M43: 0 | N43: 0
B44: 19 | C44: 洁厕净 | D44: 兰科 | E44: 瓶 | F44: 1.9 | G44: 12 | H44: 22.8 | I44: 6 | J44: 11.4 | K44: 2 | L44: 3.8 | M44: 1 | N44: 1.9
B45: 20 | C45: 洗衣粉 | E45: 包 | F45: 2.2 | G45: 6 | H45: =F45*G45 -> 13.2 | I45: 3 | J45: =I45*F45 -> 6.6 | K45: 2 | L45: =K45*F45 -> 4.4 | M45: 1 | N45: 2.2
B46: 21 | C46: 胶手套 | E46: 付 | F46: 3 | G46: 8 | H46: 24 | I46: 4 | J46: 12 | K46: 2 | L46: 6 | M46: 1 | N46: 3
B47: 22 | C47: 铁撮箕 | E47: 个 | F47: 6.9 | G47: 2 | H47: 13.8 | I47: 1 | J47: 6.9 | K47: 1 | L47: 6.9 | M47: 1 | N47: 6.9
B48: 23 | C48: 垃圾筒 | D48: 塑料 | E48: 个 | F48: 3.2 | G48: 2 | H48: 6.4 | I48: 1 | J48: 3.2 | K48: 1 | L48: 3.2 | M48: 1 | N48: 3.2
B49: 24 | C49: 扫把 | E49: 把 | F49: 4 | G49: 5 | H49: 20 | I49: 2 | J49: 8 | K49: 2 | L49: 8 | M49: 1 | N49: =M49*F49 -> 4
B50: 25 | C50: 拖把 | D50: 0.6米 | E50: 把 | F50: 29 | G50: 3 | H50: 87 | I50: 1 | J50: 29 | K50: 1 | L50: 29 | M50: 1 | N50: 29
B51: 26 | C51: 拖把 | D51: 圆拖 | E51: 把 | F51: 8.5 | G51: 5 | H51: 42.5 | I51: 3 | J51: 25.5 | K51: 2 | L51: 17 | M51: 2 | N51: 17
B52: 27 | C52: 杀虫剂 | E52: 瓶 | F52: 18.5 | G52: 2 | H52: 37 | I52: 1 | J52: 18.5 | K52: 0.5 | L52: 9.25 | M52: 0.5 | N52: 9.25
B53: 28 | C53: 毛巾 | E53: 张 | F53: 3.5 | G53: 12 | H53: 42 | I53: 6 | J53: 21 | K53: 3 | L53: 10.5 | M53: 2 | N53: 7
B54: 29 | C54: 鸡毛掸子 | E54: 个 | F54: 10 | G54: 4 | H54: 40 | I54: 2 | J54: 20 | K54: 1 | L54: 10 | M54: 1 | N54: 10
A55: 合计 | C55: 每年定额 | H55: =SUM(H28:H54) -> 861.1 | J55: =SUM(J28:J54) -> 396.05 | L55: =SUM(L28:L54) -> 212.775 | N55: =SUM(N28:N54) -> 193.8625
C56: 每月定额（合计数/12个月） | H56: =H55/12 -> 71.75833333 | J56: =J55/12 -> 33.00416667 | L56: =L55/12 -> 17.73125 | N56: 16.16

Sheet 附表二
A1: 耗材、定制品、劳保用品定额表（附表二）
A2: 类型 | B2: 序号 | C2: 品名 | D2: 规格 | E2: 单位 | F2: 参考价格（元） | G2: 定额
G3: 旗舰店 | I3: 一类店 | K3: 二类店 | M3: 三类店
G4: 数量 | H4: 金额 | I4: 数量 | J4: 金额 | K4: 数量 | L4: 金额 | M4: 数量 | N4: 金额
A5: 耗材（每年定额） | B5: 1 | C5: 收银纸 | D5: 75*60彩双 | E5: 件 | F5: 143 | G5: 45 | H5: =F5*G5 -> 6435 | I5: 8 | J5: =I5*F5 -> 1144 | K5: 5 | L5: =K5*F5 -> 715 | M5: 3 | N5: =M5*F5 -> 429
B6: 2 | C6: 电脑打印纸 | D6: 241-2（打盘点表） | E6: 件 | F6: 39 | G6: 4 | H6: =F6*G6 -> 156 | I6: 2 | J6: =I6*F6 -> 78 | K6: 1 | L6: =K6*F6 -> 39 | M6: 0.5 | N6: =M6*F6 -> 19.5
B7: 3 | C7: 硒鼓 | D7: 旗舰店专用 | E7: 个 | F7: 180 | G7: 1 | H7: 180 | I7: 0 | J7: 0 | K7: 0 | L7: 0 | M7: 0 | N7: 0
B8: 4 | C8: 硒鼓加粉 | D8: 旗舰店专用 | E8: 次 | F8: 45 | G8: 4 | H8: 180 | I8: 0 | J8: 0 | K8: 0 | L8: 0 | M8: 0 | N8: 0
B9: 5 | C9: 色带 | D9: star712（收银机用） | E9: 个 | F9: 3 | G9: 10 | H9: 30 | I9: 3 | J9: 9 | K9: 2 | L9: 6 | M9: 1 | N9: 3
B10: 6 | C10: 色带 | D10: 590K/得实2600II | E10: 个 | F10: 7 | G10: 4 | H10: 28 | I10: 2 | J10: 14 | K10: 1 | L10: 7 | M10: 1 | N10: 7
B11: 7 | C11: 碳带 | D11: 打价签（中心店用） | E11: 个 | F11: 30 | G11: 2 | H11: 60 | I11: 2 | J11: 60 | K11: 0 | L11: 0 | M11: 0 | N11: 0
A12: 定制印刷品（每年定额） | B12: 1 | C12: 防伪标签 | D12: 176个/张 | E12: 张 | F12: 1.3 | G12: 20 | H12: 26 | I12: 10 | J12: 13 | K12: 5 | L12: 6.5 | M12: 3 | N12: 3.9
B13: 2 | C13: 社保缴款单 | E13: 本 | F13: 1.5 | G13: 48 | H13: 72 | I13: 8 | J13: 12 | K13: 8 | L13: 12 | M13: 8 | N13: 12
B14: 3 | C14: 拆零药袋 | D14: 100个/打 | E14: 打 | F14: 6 | G14: 10 | H14: 60 | I14: 5 | J14: 30 | K14: 3 | L14: 18 | M14: 1 | N14: 6
B15: 4 | C15: 商品价签 | D15: 600张/卷 | E15: 卷 | F15: 24 | G15: 2 | H15: 48 | I15: 4 | J15: 96 | K15: 0 | L15: 0 | M15: 0 | N15: 0
B16: 5 | C16: 药品价签 | D16: 600张/卷 | E16: 卷 | F16: 24 | G16: 1 | H16: 24 | I16: 1 | J16: 24 | K16: 0 | L16: 0 | M16: 0 | N16: 0
B17: 6 | C17: GSP登记表格 | D17: 5本/套 | E17: 套 | F17: 15 | H17: 0 | J17: 0 | L17: 0 | N17: 0
B18: 7 | C18: 会员信息登记本 | D18: 60页/本 | E18: 本 | F18: 3 | G18: 12 | H18: 36 | I18: 4 | J18: 12 | K18: 3 | L18: 9 | M18: 2 | N18: 6
B19: 8 | C19: 交班本 | D19: 50页/本 | E19: 本 | F19: 2 | G19: 12 | H19: 24 | I19: 12 | J19: 24 | K19: 12 | L19: 24 | M19: 12 | N19: 24
B20: 9 | C20: 顾客意见本 | D20: 50页/本 | E20: 本 | F20: 4 | H20: 0 | J20: 0 | L20: 0 | N20: 0
B21: 10 | C21: 会员卡 | D21: 250张/盒 | E21: 盒 | F21: 42.5 | G21: 10 | H21: 425 | I21: 6 | J21: 255 | K21: 4 | L21: 170 | M21: 2 | N21: 85
A22: 特殊产品（每年定额） | B22: 11 | C22: 温湿度计（店内用） | E22: 个 | F22: 30 | G22: 1 | H22: 30 | I22: 1 | J22: 30 | K22: 1 | L22: 30 | M22: 1 | N22: 30
B23: 12 | C23: 温湿度计（冰柜用） | E23: 个 | F23: 20 | G23: 2 | H23: 40 | I23: 1 | J23: 20 | K23: 1 | L23: 20 | M23: 1 | N23: 20
A24: 合计 | C24: 每年定额 | H24: =SUM(H5:H23) -> 7854 | J24: =SUM(J5:J23) -> 1821 | L24: =SUM(L5:L23) -> 1056.5 | N24: =SUM(N5:N23) -> 645.4
C25: 每月定额（合计数/12个月） | H25: =H24/12 -> 654.5 | J25: =J24/12 -> 151.75 | L25: =L24/12 -> 88.04166667 | N25: =N24/12 -> 53.78333333
A26: 劳保用品（2年定额） | B26: 1 | C26: 营业员服装 | D26: 女士（夏装） | E26: 件 | F26: 100 | G26: 每名员工2年内可领用工作服夏装2套、冬装2套、头花1个、工牌一个。在2年内出现损坏、遗失申领、辞职等情况，将按2013年《关于下发夏季工作服通知》要求赔偿。
B27: 2 | C27: 营业员服装 | D27: 女士（冬装） | E27: 件 | F27: 100
B28: 3 | C28: 营业员服装 | D28: 男士（夏装） | E28: 件 | F28: 100
B29: 4 | C29: 营业员服装 | D29: 男士（冬装） | E29: 件 | F29: 100
B30: 7 | C30: 头花 | E30: 个 | F30: 5
B31: 8 | C31: 工牌 | E31: 个 | F31: 4
A32: 说明：空白部分不作定额要求，按照实际工作要求申领。

Sheet 附表三
A1: 中药饮片门店销售配套专用物资定额表（附表三）
A2: 类型 | B2: 序号 | C2: 品名 | D2: 规格 | E2: 单位 | F2: 参考价格（元） | G2: 定额
G3: 旗舰店 | I3: 一类店 | K3: 二类店 | M3: 三类店
G4: 数量 | H4: 金额 | I4: 数量 | J4: 金额 | K4: 数量 | L4: 金额 | M4: 数量 | N4: 金额
A5: 中药器具（5年定额） | B5: 1 | C5: 油漆刷 | D5: 刷药粉 | E5: 把 | F5: 2 | G5: 4 | H5: =G5*F5 -> 8 | I5: 2 | J5: =I5*F5 -> 4 | K5: 1 | L5: =K5*F5 -> 2 | M5: 1 | N5: =M5*F5 -> 2
B6: 2 | C6: 中药杆秤 | D6: 250g | E6: 把 | F6: 25 | G6: 3 | H6: =G6*F6 -> 75 | I6: 3 | J6: =I6*F6 -> 75 | K6: 1 | L6: =K6*F6 -> 25 | M6: 0 | N6: =M6*F6 -> 0
B7: 3 | C7: 中药藤编筐 | E7: 个 | F7: 15.5 | G7: 15 | H7: 232.5 | I7: 10 | J7: 155 | K7: 8 | L7: 124 | M7: 5 | N7: 77.5
B8: 4 | C8: 中药玻璃盘 | D8: 大号、2.2L | E8: 个 | F8: 14 | G8: 5 | H8: 70 | I8: 0 | J8: 0 | K8: 0 | L8: 0 | M8: 0 | N8: 0
B9: 5 | C9: 中药玻璃盘 | D9: 中号、1.8L | E9: 个 | F9: 13 | G9: 10 | H9: 130 | I9: 10 | J9: 130 | K9: 6 | L9: 78 | M9: 4 | N9: 52
B10: 6 | C10: 中药玻璃盘 | D10: 小号、1.2L | E10: 个 | F10: 11 | G10: 20 | H10: 220 | I10: 10 | J10: 110 | K10: 6 | L10: 66 | M10: 4 | N10: 44
B11: 7 | C11: 中药调配盘 | D11: 35cm | E11: 个 | F11: 12 | G11: 10 | H11: 120 | I11: 3 | J11: 36 | K11: 3 | L11: 36 | M11: 0 | N11: 0
B12: 8 | C12: 中药玻璃瓶 | E12: 个 | F12: 22 | G12: 20 | H12: 440 | I12: 8 | J12: 176 | K12: 4 | L12: 88 | M12: 2 | N12: 44
B13: 9 | C13: 青花瓷中药罐 | E13: 个 | F13: 15 | G13: 15 | H13: 225 | I13: 8 | J13: 120 | K13: 4 | L13: 60 | M13: 2 | N13: 30
B14: 10 | C14: 丝漏 | E14: 个 | F14: 18 | G14: 3 | H14: 54 | I14: 1 | J14: 18 | K14: 1 | L14: 18 | M14: 0 | N14: 0
B15: 11 | C15: 对窝 | E15: 个 | F15: 45 | G15: 5 | H15: 225 | I15: 2 | J15: 90 | K15: 1 | L15: 45 | M15: 0 | N15: 0
B16: 12 | C16: 中药粉叉 | D16: 当调羹用的 | E16: 个 | F16: 7 | G16: 2 | H16: 14 | I16: 1 | J16: 7 | K16: 1 | L16: 7 | M16: 1 | N16: 7
B17: 13 | C17: 西洋参夹子 | E17: 把 | F17: 3 | G17: 10 | H17: 30 | I17: 1 | J17: 3 | K17: 1 | L17: 3 | M17: 1 | N17: =M17*F17 -> 3
B18: 14 | C18: 中药标签 | E18: 本 | F18: 50 | G18: 2 | H18: 100 | I18: 1 | J18: 50 | K18: 1 | L18: 50 | M18: 1 | N18: =M18*F18 -> 50
B19: 合计 | H19: =SUM(H5:H18) -> 1943.5 | J19: =SUM(J5:J18) -> 974 | L19: =SUM(L5:L18) -> 602 | N19: =SUM(N5:N18) -> 309.5
A20: 散卖中药饮片（限1-6项,由门店自行采购）、中医坐诊、具备代煎药资格门店专用（每年定额） | B20: 每月定额（合计数/60个月） | H20: 32.4 | J20: 16.23 | L20: 10.03 | N20: 5.2
B21: 1 | C21: 玻璃纸塑料袋 | D21: 大号 | E21: 个 | F21: 0.09 | G21: 500 | H21: =G21*F21 -> 45 | I21: 根据中药销售额订。全年销售额100万及以上的门店，全年物资费用不超过9000元；全年销售额50万元（含）至100万元（不含），全年费用不超过6000元；全年销售额10万元（含）至50万（不含）的门店，全年物资费用不超过3500元；全年销售10万（不含）以下的门店，全年物资费用不超过1500元；全年销售额5万元以下的门店，全年物资费用不超过500元。（中药销售增长明显可作相应办公物资定额调整）
B22: 2 | C22: 玻璃纸塑料袋 | D22: 中号 | E22: 个 | F22: 0.07 | G22: 1000 | H22: 70
B23: 3 | C23: 玻璃纸塑料袋 | D23: 小号 | E23: 个 | F23: 0.06 | G23: 1000 | H23: 60
B24: 4 | C24: 自封袋 | D24: 大号（30×20cm） | E24: 个 | F24: 0.09 | G24: 200 | H24: 18
B25: 5 | C25: 自封袋 | D25: 中号（17×12cm） | E25: 个 | F25: 0.08 | G25: 200 | H25: 16
B26: 6 | C26: 自封袋 | D26: 小号（12×8cm） | E26: 个 | F26: 0.07 | G26: 500 | H26: 35
B27: 7 | C27: 垃圾桶 | D27: 塑料（熬药用） | E27: 个 | F27: 55 | G27: 1 | H27: 55
B28: 8 | C28: 中药牛皮包装袋 | E28: 个 | F28: 0.162 | G28: 100000 | H28: 16200
B29: 9 | C29: 中药牛皮包装纸 | E29: 张 | F29: 0.5 | G29: 1000 | H29: 500
B30: 10 | C30: 中药处方签 | E30: 本 | F30: 3 | G30: 600 | H30: =G30*F30 -> 1800
B31: 11 | C31: 诊所门诊登记表 | E31: 本 | F31: 3 | G31: 48 | H31: 144
B32: 12 | C32: 熬药袋（大号） | D32: 300个/件 | E32: 件 | F32: 240 | G32: 8 | H32: 1920
B33: 13 | C33: 熬药袋（中号） | D33: 600个/件 | E33: 件 | F33: 270 | G33: 12 | H33: 3240
B34: 14 | C34: 熬药袋（小号） | D34: 600个/件 | E34: 件 | F34: 240 | G34: 0 | H34: 0
B35: 15 | C35: 吸管 | D35: 1万支/件 | E35: 件 | F35: 140 | G35: 4 | H35: 560
B36: 16 | C36: 中药包装卷 | D36: 5000个/件 | E36: 件 | F36: 446 | G36: 30 | H36: 13380
B37: 17 | C37: 中药熬药签(提醒贴) | D37: 50张/本 | E37: 本 | F37: 0.6 | G37: 600 | H37: 360
A38: 合计 | C38: 每年定额 | H38: =SUM(H21:H37) -> 38403 | I38: 1500-9000
C39: 每月定额(合计数/12个月） | H39: =H38/12 -> 3200.25 | I39: 42-750
A40: 2年定额 | B40: 1 | C40: 贵细柜台工作服 | E40: 件 | F40: 125 | G40: 每名员工2年内可领用工作服夏、冬装各2套。在2年内出现损坏、遗失申领、辞职等情况，将按相关文件要求赔偿。
B41: 2 | C41: 医生白大褂 | D41: 夏装 | E41: 件 | F41: 25
B42: 3 | C42: 医生白大褂 | D42: 冬装 | E42: 件 | F42: 30

Sheet 附表四
A1: 后勤部门办公物资定额表（附表四）
A2: 部门 | B2: 人数 | C2: 低值易耗品定额（单位：元） | E2: A4纸定额（每月） | H2: 打印纸定额（241-1/241-2/241-3) | J2: 办公用品定额（单位：元）
C4: 人/月 | D4: 部门/月 | E4: 包/元 | F4: 包 | G4: 金额 | H4: 件 | I4: 金额 | J4: 每月定额 | K4: 全年定额
A5: 办公室 | B5: 4 | C5: 5 | D5: =B5*C5 -> 20 | E5: 16.25 | F5: 4 | G5: =F5*E5 -> 65 | H5: 0 | J5: =D5+G5+H5 -> 85 | K5: =J5*12 -> 1020
A6: 保卫部 | B6: 2 | C6: 5 | D6: 10 | E6: 16.25 | F6: 1 | G6: 16.25 | H6: 0 | J6: 26.25 | K6: 315
A7: 人事部 | B7: 5 | C7: 5 | D7: 25 | E7: 16.25 | F7: 2 | G7: 32.5 | H7: 0 | J7: 57.5 | K7: 690
A8: 质管部 | B8: 2 | C8: 5 | D8: 10 | E8: 16.25 | F8: 2 | G8: 32.5 | H8: 0 | J8: 42.5 | K8: 510
A9: 发展部 | B9: 6 | C9: 5 | D9: 30 | E9: 16.25 | F9: 2 | G9: 32.5 | H9: 0 | J9: 62.5 | K9: 750
A10: 信息部 | B10: 6 | C10: 5 | D10: 30 | E10: 16.25 | F10: 1 | G10: 16.25 | H10: 0 | J10: 46.25 | K10: 555
A11: 营运部 | B11: 12 | C11: 5 | D11: 60 | E11: 16.25 | F11: 8 | G11: 130 | H11: 0 | J11: 190 | K11: 2280
A12: 业务部 | B12: 10 | C12: 5 | D12: 50 | E12: 16.25 | F12: 2 | G12: 32.5 | H12: 0.5 | I12: 19.5 | J12: 83 | K12: 996
A13: 财务部 | B13: 10 | C13: 5 | D13: 50 | E13: 16.25 | F13: 2 | G13: 32.5 | H13: 10 | I13: 370 | J13: 92.5 | K13: 1110
A14: 物流部 | B14: 39 | C14: 5 | D14: 195 | E14: 16.25 | F14: 1 | G14: 16.25 | H14: 26.5 | I14: 868 | J14: 237.75 | K14: 2853
A15: 合计 | D15: =SUM(D5:D14) -> 480 | F15: =SUM(F5:F14) -> 25 | J15: 923.25 | K15: 11079

Sheet 附表五
A1: 门店办公物资申请表（附表五） 申报时间：2016 年 3 月 25 日
A2: 类型 | B2: 序号 | C2: 品名 | D2: 规格 | E2: 单位 | F2: 参考价格 | G2: （ 高新 片区）数量汇总 | H2: 门店：（邓双 ） | I2: 门店：（ 天久北巷店 ） | J2: 门店：（ 大源北街店 ） | K2: 门店：（ 楠丰路店 ） | L2: 门店：（ 柳荫店 ） | M2: 门店：（ 双流锦华店 ） | N2: 门店：（ 华阳正东中街店 ） | O2: 门店：（ 新津正东街店 ） | P2: 门店：（ 新乐中街店 ） | Q2: 门店：（ 府城大道店 ） | R2: 门店：（ 新津兴义店 ） | S2: 门店：（ 民丰西路店 ） | T2: 门店：（ 五津西路 ） | U2: 门店：（ 新园大道店 ）
H3: 申请数量 | I3: 申请数量 | J3: 申请数量 | K3: 申请数量 | L3: 申请数量 | M3: 申请数量 | N3: 申请数量 | O3: 申请数量 | P3: 申请数量 | Q3: 申请数量 | R3: 申请数量 | S3: 申请数量 | T3: 申请数量 | U3: 申请数量
A4: 耗材 | B4: 1 | C4: 收银纸 | D4: 75*60彩双 | E4: 件 | F4: 143 | I4: 1
B5: 2 | C5: 电脑打印纸 | D5: 241-2（打盘点表） | E5: 件 | F5: 39 | I5: 1
B6: 3 | C6: 色带 | D6: star712（收银机用） | E6: 个 | F6: 3 | I6: 2
B7: 4 | C7: 色带 | D7: 590K/得实2600II | E7: 个 | F7: 7 | I7: 2
B8: 5 | C8: 碳带 | D8: 打价签（中心店用） | E8: 个 | F8: 30
A9: 定制印刷品 | B9: 6 | C9: 防伪标签 | D9: 176个/张 | E9: 张 | F9: 1.3 | I9: 1
B10: 7 | C10: 社保缴款单 | E10: 本 | F10: 1.5
B11: 8 | C11: 拆零药袋 | D11: 100个/打 | E11: 打 | F11: 6
B12: 9 | C12: 商品价签 | D12: 600张/卷 | E12: 卷 | F12: 24 | I12: 1
B13: 10 | C13: 药品价签 | D13: 600张/卷 | E13: 卷 | F13: 24 | I13: 1
B14: 11 | C14: GSP登记表格 | D14: 5本/套 | E14: 套 | F14: 15
B15: 12 | C15: 会员信息登记本 | D15: 60页/本 | E15: 本 | F15: 3
B16: 13 | C16: 交班本 | D16: 50页/本 | E16: 本 | F16: 2
B17: 14 | C17: 顾客意见本 | D17: 50页/本 | E17: 本 | F17: 4
C18: 积分抵现登记本 | D18: 30页/本 | E18: 本 | F18: 2
B19: 15 | C19: 会员卡 | D19: 250张/盒 | E19: 盒 | F19: 42.5
A20: 特殊产品 | B20: 16 | C20: 温湿度计（店内用） | E20: 个 | F20: 30
B21: 17 | C21: 温湿度计（冰柜用） | E21: 个 | F21: 20
A22: 中药销售专用(限中药饮片销售门店领用） | B22: 18 | C22: 中药牛皮包装袋 | E22: 个 | F22: 0.162
B23: 19 | C23: 中药牛皮包装纸 | E23: 张 | F23: 0.5
B24: 20 | C24: 油漆刷 | D24: 刷药粉 | E24: 把 | F24: 2.5
B25: 21 | C25: 中药杆秤 | D25: 250g | E25: 把 | F25: 25
B26: 22 | C26: 中药藤编筐 | E26: 个 | F26: 15.5
B27: 23 | C27: 中药玻璃盘 | D27: 大号、2.2L | E27: 个 | F27: 14
B28: 24 | C28: 中药玻璃盘 | D28: 中号、1.8L | E28: 个 | F28: 13
B29: 25 | C29: 中药玻璃盘 | D29: 小号、1.2L | E29: 个 | F29: 11
B30: 26 | C30: 中药调配盘 | D30: 35cm | E30: 个 | F30: 12
B31: 27 | C31: 中药玻璃瓶 | E31: 个 | F31: 25
B32: 28 | C32: 青花瓷中药罐 | E32: 个 | F32: 15
B33: 29 | C33: 丝漏 | E33: 个 | F33: 18
B34: 30 | C34: 对窝 | E34: 个 | F34: 45
B35: 31 | C35: 电子称 | D35: 3kg(普通贵细） | E35: 台 | F35: 380
B36: 32 | C36: 电子称 | D36: 虫草专用 | E36: 台 | F36: 420
B37: 33 | C37: 中药粉叉 | D37: 当调羹用的 | E37: 个 | F37: 7
B38: 34 | C38: 西洋参夹子 | E38: 把 | F38: 3
B39: 35 | C39: 中药标签 | E39: 本 | F39: 50
B40: 36 | C40: 中药处方签 | E40: 本 | F40: 3
B41: 37 | C41: 诊所门诊登记表 | E41: 本 | F41: 3
B42: 38 | C42: 中药一次性熬药袋（大号） | D42: 300个/件 | E42: 件 | F42: 240
B43: 39 | C43: 中药一次性熬药袋（中号） | D43: 600个/件 | E43: 件 | F43: 270
B44: 40 | C44: 中药一次性熬药袋（小号） | D44: 600个/件 | E44: 件 | F44: 240
B45: 41 | C45: 吸管 | D45: 1万支/件 | E45: 件 | F45: 140
B46: 42 | C46: 中药包装卷 | D46: 2组/件 | E46: 件 | F46: 446
B47: 43 | C47: 中药熬药签(提醒贴) | D47: 50张/本 | E47: 本 | F47: 0.6
C49: 色带架 | D49: star712（收银机用） | E49: 个 | R49: 1 | S49: 2
C50: 色带架 | D50: 590K/得实2600II | E50: 个 | S50: 1
C52: 收银打印机色带架
A53: 附表三 | B53: 1 | C53: 自封袋 | D53: 大号（30×20cm） | E53: 个 | F53: 0.09
B54: 2 | C54: 自封袋 | D54: 中号（17×12cm） | E54: 个 | F54: 0.08

Sheet 附表六
A1: 劳保用品申请表（门店名称： ）附表六
A2: 序号 | B2: 品名 | C2: 规格 | D2: 单位 | E2: 参考价格 | F2: 数量 | G2: 申请原因 | H2: 新申领需要报 | N2: 备注
H3: 性别 | I3: 身高 | J3: 肩宽 | K3: 胸围 | L3: 腰围 | M3: 臀围
A4: 1 | B4: 营业员服装 | C4: 男士（夏装） | D4: 件 | E4: 100
A5: 2 | B5: 营业员服装 | C5: 男士（冬装） | D5: 件 | E5: 100
A6: 3 | B6: 贵细柜台工作服 | D6: 件 | E6: 125
A7: 4 | B7: 收银台工作服 | C7: 限旗舰店 | D7: 件
A8: 5 | B8: 营业员服装 | C8: 女士（夏装） | D8: 件 | E8: 100 | F8: 1 | H8: 型号：(S/M/L/XL/XXL):
A9: 6 | B9: 营业员服装 | C9: 女士（冬装） | D9: 件 | E9: 100 | F9: 1 | H9: 型号：(S/M/L/XL/XXL):
A10: 7 | B10: 医生白大褂 | C10: 夏装 | D10: 件 | E10: 25 | H10: 型号：(S/M/L/XL/XXL):
A11: 8 | B11: 医生白大褂 | C11: 冬装 | D11: 件 | E11: 30 | H11: 型号：(S/M/L/XL/XXL):
A12: 9 | B12: 头花 | C12: 限长发女士 | D12: 个 | E12: 5 | F12: 1 | G12: 头花已坏，需重新换新的一个 | H12: --------------
A13: 10 | B13: 工牌 | D13: 个 | E13: 4 | F13: 3

Sheet 附表七
A1: 后勤部门办公物资申请表（附表七）
A2: 序号 | B2: 品名 | C2: 单位 | D2: 型号 | E2: 数量 | F2: 单价 | G2: 金额 | H2: 备注
A16: 合计

Sheet 附表八
A1: 门店分类表（附表八）
A2: 序号 | B2: 门店名称 | C2: 门店类型
A3: 1 | B3: 四川太极旗舰店 | C3: 旗舰店
A4: 2 | B4: 四川太极浆洗街药店 | C4: 一类
A5: 3 | B5: 四川太极邛崃中心药店 | C5: 一类
A6: 4 | B6: 四川太极光华药店 | C6: 一类
A7: 5 | B7: 四川太极西部店 | C7: 一类
A8: 6 | B8: 四川太极光华村街药店 | C8: 一类
A9: 7 | B9: 四川太极高新区民丰大道西段药店 | C9: 一类
A10: 8 | B10: 四川太极沙河源药店 | C10: 一类
A11: 9 | B11: 四川太极成华区华泰路药店 | C11: 一类
A12: 10 | B12: 四川太极红星店 | C12: 一类
A13: 11 | B13: 四川太极双林路药店 | C13: 一类
A14: 12 | B14: 四川太极崇州中心店 | C14: 一类
A15: 13 | B15: 四川太极青羊区十二桥药店 | C15: 一类
A16: 14 | B16: 四川太极成华区万科路药店 | C16: 一类
A17: 15 | B17: 四川太极高新区府城大道西段店 | C17: 一类
A18: 16 | B18: 四川太极成华区羊子山西路药店（兴元华盛） | C18: 一类
A19: 17 | B19: 四川太极温江店 | C19: 二类
A20: 18 | B20: 四川太极五津西路药店 | C20: 二类
A21: 19 | B21: 四川太极成华区华油路药店 | C21: 二类
A22: 20 | B22: 四川太极怀远店 | C22: 二类
A23: 21 | B23: 四川太极新乐中街药店 | C23: 二类
A24: 22 | B24: 四川太极金牛区交大路第三药店 | C24: 二类
A25: 23 | B25: 四川太极金丝街药店 | C25: 二类
A26: 24 | B26: 四川太极都江堰药店 | C26: 二类
A27: 25 | B27: 四川太极青羊区北东街店 | C27: 二类
A28: 26 | B28: 四川太极枣子巷药店 | C28: 二类
A29: 27 | B29: 四川太极人民中路店 | C29: 二类
A30: 28 | B30: 四川太极滨江东路药店 | C30: 二类
A31: 29 | B31: 四川太极三江店 | C31: 二类
A32: 30 | B32: 四川太极新津邓双镇岷江店 | C32: 二类
A33: 31 | B33: 四川太极新都区新繁镇繁江北路药店 | C33: 二类
A34: 32 | B34: 四川太极送仙桥药店 | C34: 二类
A35: 33 | B35: 四川太极金带街药店 | C35: 二类
A36: 34 | B36: 四川太极大邑县晋源镇富民路药店 | C36: 二类
A37: 35 | B37: 四川太极大邑县晋原镇内蒙古大道药店 | C37: 二类
A38: 36 | B38: 四川太极成华区二环路北四段药店（汇融名城） | C38: 二类
A39: 37 | B39: 四川太极清江东路药店 | C39: 二类
A40: 38 | B40: 四川太极青羊区浣花滨河路药店 | C40: 二类
A41: 39 | B41: 四川太极华阳正东中街店 | C41: 二类
A42: 40 | B42: 四川太极大邑县晋原镇通达东路五段药店 | C42: 二类
A43: 41 | B43: 四川太极武侯区一环路南一段药店 | C43: 三类
A44: 42 | B44: 四川太极武侯区顺和街店 | C44: 三类
A45: 43 | B45: 四川太极都江堰幸福镇翔风路药店 | C45: 三类
A46: 44 | B46: 四川太极龙潭西路店 | C46: 三类
A47: 45 | B47: 四川太极通盈街药店 | C47: 三类
A48: 46 | B48: 四川太极大邑县晋原镇子龙路店 | C48: 三类
A49: 47 | B49: 四川太极都江堰奎光路中段药店 | C49: 三类
A50: 48 | B50: 四川太极邛崃市临邛镇长安大道药店 | C50: 三类
A51: 49 | B51: 四川太极土龙路药店 | C51: 三类
A52: 50 | B52: 四川太极新园大道药店 | C52: 三类
A53: 51 | B53: 四川太极武侯大道双楠段店 | C53: 三类
A54: 52 | B54: 四川太极温江区柳城街道同兴东路药店 | C54: 三类
A55: 53 | B55: 四川太极高新区中和街道柳荫街药店 | C55: 三类
A56: 54 | B56: 四川太极大邑县安仁镇千禧街药店 | C56: 三类
A57: 55 | B57: 四川太极邛崃市临邛镇洪川小区药店 | C57: 三类
A58: 56 | B58: 四川太极南湖路药店 | C58: 三类
A59: 57 | B59: 四川太极都江堰景中路店 | C59: 三类
A60: 58 | B60: 四川太极成华区崔家店路药店 | C60: 三类
A61: 59 | B61: 四川太极成华区玉双路药店 | C61: 三类
A62: 60 | B62: 四川太极都江堰胥家镇重庆路药店 | C62: 三类
A63: 61 | B63: 四川太极锦江区观音桥街药店 | C63: 三类
A64: 62 | B64: 四川太极金牛区白马寺街药店 | C64: 三类
A65: 63 | B65: 四川太极新都三河场镇天海路药店 | C65: 三类
A66: 64 | B66: 四川太极高新区大源北街药店 | C66: 三类
A67: 65 | B67: 四川太极武侯区燃灯寺东街药店 | C67: 三类
A68: 66 | B68: 四川太极大药房金牛区五里墩支路药店 | C68: 三类
A69: 67 | B69: 四川太极黄金路药店 | C69: 三类
A70: 68 | B70: 四川太极双流县西航港街道锦华路一段药店 | C70: 三类
A71: 69 | B71: 四川太极柳城正通东路药店 | C71: 三类
A72: 70 | B72: 四川太极郫县郫筒镇东大街药店 | C72: 三类
A73: 71 | B73: 四川太极金牛区黄苑东街药店 | C73: 三类
A74: 72 | B74: 四川太极成华杉板桥南一路店 | C74: 三类
A75: 73 | B75: 四川太极都江堰市蒲阳路药店 | C75: 三类
A76: 74 | B76: 四川太极新都区马超东路店 | C76: 三类
A77: 75 | B77: 四川太极邛崃市羊安镇永康大道药店 | C77: 三类
A78: 76 | B78: 四川太极青羊区群和路药店 | C78: 三类
A79: 77 | B79: 四川太极新津县正东街店 | C79: 三类
A80: 78 | B80: 四川太极高新天久北巷药店 | C80: 三类
A81: 79 | B81: 四川太极邛崃市临邛镇汇源街药店 | C81: 三类
A82: 80 | B82: 四川太极锦江区柳翠路药店 | C82: 三类
A83: 81 | B83: 四川太极大邑县新场镇文昌街药店 | C83: 三类
A84: 82 | B84: 四川太极锦江区水杉街药店 | C84: 三类
A85: 83 | B85: 四川太极羊马店 | C85: 三类
A86: 84 | B86: 四川太极青白江区华金大道二段药店 | C86: 三类
A87: 85 | B87: 四川太极大邑县晋源镇东壕沟段药店 | C87: 三类
A88: 86 | B88: 四川太极龙泉驿区同安镇锦绣路店 | C88: 三类
A89: 87 | B89: 四川太极都江堰市蒲阳镇堰问道西路药店 | C89: 三类
A90: 88 | B90: 四川太极锦江区楠丰路店 | C90: 三类
A91: 89 | B91: 四川太极双流县东升镇清泰路药店 | C91: 三类
A92: 90 | B92: 四川太极龙泉驿区东街药店 | C92: 三类
A93: 91 | B93: 四川太极大邑县晋源镇围城北路西段药店 | C93: 三类
A94: 92 | B94: 四川太极成华区双建路店 | C94: 三类
A95: 93 | B95: 四川太极大邑县沙渠镇方圆路药店 | C95: 三类
A96: 94 | B96: 四川太极营兴路药店 | C96: 三类
A97: 95 | B97: 四川太极新都区新泰西路药店 | C97: 三类
A98: 96 | B98: 四川太极都江堰聚源镇药店 | C98: 三类
A99: 97 | B99: 四川太极邛崃市平乐镇台子街药店 | C99: 三类
A100: 98 | B100: 四川太极新津县五津镇外西街药店 | C100: 三类
A101: 99 | B101: 四川太极兴义镇万兴路药店 | C101: 三类
A102: 100 | B102: 四川太极都江堰灌口镇外北街药店 | C102: 三类
